Cogmind - Beta 13 @@@ ROGUE MODE // 2024.04.21 @ 02:54:33 // Winter2019/RPGLIKE Player: Luminiferous Result: Destroyed by H-61 Shepherd with Heavy Assault Cannon Performance ------------- Evolutions (3) 1500 Regions Visited (9) 1800 Robots Destroyed (122) 610 Value Destroyed (3093) 3093 Prototype IDs (8) 160 Alien Tech Used (0) 0 Bonus (922) 922 TOTAL SCORE: 8085 Bonus ------- High Alert Combat Kills 422 Entered DSFs 500 Cogmind --------- Core Integrity 0/1000 Matter 158/300 Energy 194/200 System Corruption 0% Temperature Cool (0) Movement Hovering (40) Location -7/DSF Parts ------- > --- POWER (2) -------- Light Deuterium Engine Light Nuclear Core > --- PROPULSION (4) --- Hover Unit Aerolev Unit Aerolev Unit Aerolev Unit > --- UTILITY (6) ------ Improved Heat Sink Improved Sensor Array Advanced Signal Interpreter Reaction Control System Improved Medium Armor Plating Improved Medium Armor Plating > --- WEAPON (2) ------- Chainsword Chainsword > --- INVENTORY (4) ---- Melee Analysis Suite Improved Medium Armor Plating Improved Medium Armor Plating Mini Grenade Launcher Peak State ------------ > --- POWER ------------ Light Deuterium Engine Light Nuclear Core > --- PROPULSION ------- Hover Unit Aerolev Unit Aerolev Unit Aerolev Unit > --- UTILITY ---------- Improved Heat Sink Improved Sensor Array Advanced Signal Interpreter Reaction Control System Improved Medium Armor Plating Improved Medium Armor Plating > --- WEAPON ----------- Chainsword Chainsword > --- INVENTORY -------- Melee Analysis Suite Improved Medium Armor Plating Improved Medium Armor Plating Mini Grenade Launcher [Rating: 50] Favorites ----------- Power Light Nuclear Core Engine Light Ion Engine Power Core Light Nuclear Core Propulsion Hover Unit Treads Light Treads Leg Aluminum Leg Hover Unit Hover Unit Flight Unit Improved VTOL Module Utility Signal Interpreter Device Improved Heat Sink Processor Signal Interpreter Protection Hardened Light Armor Plating Weapon Improved Light Cannon Ballistic Gun Assault Rifle Ballistic Cannon Improved Light Cannon Launcher Mini Grenade Launcher Impact Weapon Flail Slashing Weapon Katana Build | -11 -10 -10 -9 -9 -9 -8 -8 -7 -7 ------- Run | Yrd Mat Min Mat Min Exi Min Mat Fac DSF Slots Evolved 10 | 3 1 1 2 . . . 3 . . Power 1 | . . . . . . . 1 . . Propulsion 3 | 1 1 . 1 . . . . . . Utility 5 | 1 . 1 1 . . . 2 . . Weapon 1 | 1 . . . . . . . . . Parts Attached 88 | 2 18 6 6 3 1 1 49 . 2 Power 12 | . 1 . . . . . 11 . . Engine 4 | . . . . . . . 4 . . Core 8 | . 1 . . . . . 7 . . Reactor . | . . . . . . . . . . Propulsion 20 | 2 7 1 4 1 . . 5 . . Treads 2 | 2 . . . . . . . . . Leg . | . . . . . . . . . . Wheel . | . . . . . . . . . . Hover 17 | . 7 1 4 1 . . 4 . . Flight 1 | . . . . . . . 1 . . Utility 33 | . 2 1 2 . . 1 26 . 1 Device 10 | . 1 . 1 . . . 8 . . Storage . | . . . . . . . . . . Processor 3 | . 1 . . . . . 1 . 1 Hackware . | . . . . . . . . . . Protection 20 | . . 1 1 . . 1 17 . . Artifact . | . . . . . . . . . . Weapon 23 | . 8 4 . 2 1 . 7 . 1 Energy Gun . | . . . . . . . . . . Energy Cannon . | . . . . . . . . . . Ballistic Gun 3 | . 3 . . . . . . . . Ballistic Cannon 4 | . 2 2 . . . . . . . Launcher 7 | . 1 2 . 1 . . 3 . . Special Weapon . | . . . . . . . . . . Impact Weapon 2 | . 2 . . . . . . . . Slashing Weapon 7 | . . . . 1 1 . 4 . 1 Piercing Weapon . | . . . . . . . . . . Special Melee Weapon . | . . . . . . . . . . Unidentified Prototypes 5 | . . . . . . . 5 . . Parts Lost 2 | . . . 1 . . . 1 . . Power . | . . . . . . . . . . Propulsion 1 | . . . . . . . 1 . . Utility 1 | . . . 1 . . . . . . Weapon . | . . . . . . . . . . Highest Loss Streak 1 | . . . 1 . . . 1 . . To Critical Strikes . | . . . . . . . . . . Average Slot Usage (%) 95 | . 87 100 97 99 100 100 94 . 100 Engine 2 | . 8 . . . . . 3 . 7 Core 8 | . 5 11 10 9 9 9 8 . 7 Treads 3 | . 16 . . . . . . . . Hover 27 | . 11 36 33 36 36 36 27 . 28 Device 14 | . 6 11 16 18 18 18 16 . 21 Processor 9 | . 10 11 10 9 9 9 7 . 7 Protection 6 | . . . 4 9 9 9 12 . 14 Ballistic Gun 4 | . 17 . . . . . . . . Ballistic Cannon 8 | . 8 23 21 5 . . . . . Launcher 1 | . . 1 . 9 . . . . 3 Slashing Weapon 6 | . . . . 3 18 18 14 . 10 Naked Turns . | . . . . . . . . . . Heaviest Build 35 | 4 14 17 18 15 14 14 35 31 33 Greatest Support 40 | 40 40 18 24 24 24 24 35 35 35 Greatest Overweight (x) 4 | 1 4 . . . . . 1 . . Average Overweight (x) . | . . . . . . . . . . Largest Inventory Capacity 4 | 3 3 3 3 3 3 3 4 4 4 Average Capacity 3 | 2 3 3 3 3 3 3 3 4 4 Most Carried 4 | 2 3 3 3 3 2 3 4 3 4 Average Carried 2 | . 2 2 2 2 2 2 3 3 3 Final Capacity 4 | 3 3 3 3 3 3 3 4 4 4 Final Carried 4 | 1 3 3 3 2 2 3 3 3 4 Class Distribution -------------------- 42% | Scavenger-Mutant 21% | Mutant 18% | Gladiator 17% | Scavenger-Gladiator Dominant Class ---------------- Mutant | -10/Materials Scavenger-Mutant | -10/Mines Scavenger-Mutant | -9/Materials Scavenger-Mutant | -9/Mines Scavenger-Gladiator | -9/Exiles Scavenger-Gladiator | -8/Mines Gladiator | -8/Materials Gladiator | -7/Factory Gladiator | -7/DSF Resources | -11 -10 -10 -9 -9 -9 -8 -8 -7 -7 ----------- Run | Yrd Mat Min Mat Min Exi Min Mat Fac DSF Matter Collected 2393 | 200 506 189 767 124 . 20 587 . . Remotely . | . . . . . . . . . . Salvage Created 2944 | . 518 143 859 168 . 77 1179 . . Parts 221 | . 30 10 71 25 . . 85 . . Haulers Intercepted 4 | . . . 1 . . . 3 . . Recyclers Shooed 5 | . . . 2 . . . 3 . . Parts Field Recycled . | . . . . . . . . . . Retrieved Matter . | . . . . . . . . . . Parts Self-Destructed . | . . . . . . . . . . Prevented . | . . . . . . . . . . Kills | -11 -10 -10 -9 -9 -9 -8 -8 -7 -7 ------- Run | Yrd Mat Min Mat Min Exi Min Mat Fac DSF Combat Hostiles Destroyed 97 | . 13 8 31 15 . 1 29 . . Melee 18 | . . . . . . 1 17 . . Guns 9 | . 9 . . . . . . . . Cannons 35 | . . 2 31 2 . . . . . AOE 34 | . 3 6 . 13 . . 12 . . Classes Destroyed 11 | . 5 . 5 . . . 1 . . Worker 6 | . 1 . 1 1 . . 3 . . Builder 3 | . . . 1 . . . 2 . . Tunneler 1 | . . . . . . . 1 . . Hauler 4 | . . . 1 . . . 3 . . Recycler 3 | . . . 1 . . . 2 . . Operator 2 | . 1 . 1 . . . . . . Watcher 6 | . 2 . 2 . . . 2 . . Swarmer 38 | . 3 6 7 12 . . 10 . . Grunt 41 | . 10 2 15 2 . 1 11 . . Duelist 4 | . . . 2 1 . . 1 . . Sentry 14 | . . . 7 . . . 7 . . Best Kill Streak 14 | . 4 4 7 9 . 1 14 . . Combat Bots Only 8 | . 3 3 5 8 . 1 8 . . Max Kills in Single Turn 4 | . 2 2 2 4 . 1 3 . . Gunslinging . | . . . . . . . . . . Exploded 4 | . 1 2 . 4 . . 2 . . Melee 1 | . . . . . . 1 1 . . Uniques/NPCs Destroyed . | . . . . . . . . . . Combat | -11 -10 -10 -9 -9 -9 -8 -8 -7 -7 -------- Run | Yrd Mat Min Mat Min Exi Min Mat Fac DSF Hostile Shots Fired 411 | . 72 29 113 25 . 7 141 . 24 Missed 126 | . 18 11 31 7 . 4 46 . 9 Damage Taken 4094 | . 671 237 1139 194 . 48 1338 . 467 Core 2929 | . 541 188 860 133 . 37 861 . 309 Absorbed by Shields . | . . . . . . . . . . Redirected to Core 2387 | . 405 154 642 119 . 37 721 . 309 Regen/Repaired (Parts) 23 | . . . . . . . 23 . . Core Remaining (%) 51 | 100 . 43 . . . 32 30 . . Volleys Fired 185 | . 47 15 89 16 . . 18 . . Largest 2 | . 2 2 2 1 . . 1 . . Hottest 78 | . 78 78 78 39 . . 30 . . Shots Fired 325 | . 90 23 178 16 . . 18 . . Gun 78 | . 78 . . . . . . . . Cannon 213 | . 8 16 178 11 . . . . . Launcher 34 | . 4 7 . 5 . . 18 . . Special . | . . . . . . . . . . Kinetic 291 | . 86 16 178 11 . . . . . Thermal . | . . . . . . . . . . Explosive 34 | . 4 7 . 5 . . 18 . . Electromagnetic . | . . . . . . . . . . Robot Hit Streak 14 | . 14 2 10 5 . . 4 . . Robot Miss Streak 6 | . 4 3 6 4 . . 3 . . Penetration Max . | . . . . . . . . . . Secondary Targets 1 | . 1 . . . . . . . . Max Gunslinging Chain 1 | . 1 . . . . . . . . Shots Hit Robots 259 | . 64 7 106 7 . 3 63 . 9 Core Hits 152 | . 25 11 42 17 . 1 56 . . Critical Kills . | . . . . . . . . . . Critical Parts Destroyed . | . . . . . . . . . . Critical Strikes 13 | . . . 3 . . . 10 . . Blast 3 | . . . 3 . . . . . . Sever 10 | . . . . . . . 10 . . Melee Attacks 107 | . 5 . . . . 6 84 . 12 Impact 5 | . 5 . . . . . . . . Slashing 102 | . . . . . . 6 84 . 12 Piercing . | . . . . . . . . . . Sneak Attacks 7 | . . . . . . . 7 . . Combat Hostiles 2 | . . . . . . . 2 . . Follow-up Attacks 16 | . 1 . . . . 1 11 . 3 Damage Inflicted 8960 | . 1081 488 2223 850 . 101 4042 . 175 Guns 733 | . 733 . . . . . . . . Cannons 2598 | . 60 180 2223 135 . . . . . Explosions 3053 | . 174 300 . 715 . . 1864 . . Melee 2568 | . 114 . . . . 101 2178 . 175 Ramming 8 | . . 8 . . . . . . . Kinetic 3331 | . 793 180 2223 135 . . . . . Thermal . | . . . . . . . . . . Explosive 3053 | . 174 300 . 715 . . 1864 . . Electromagnetic . | . . . . . . . . . . Impact 114 | . 114 . . . . . . . . Slashing 2454 | . . . . . . 101 2178 . 175 Piercing . | . . . . . . . . . . Highest Corruption 4 | . . . . . . . 4 . . Average Corruption 4 | . . . . . . . 4 . . Corruption Purged . | . . . . . . . . . . Corruption Blocked . | . . . . . . . . . . Effects 12 | . . . . . . . 12 . . Message Errors 3 | . . . . . . . 3 . . Matter Fused 5 | . . . . . . . 5 . . Energy Discharges 2 | . . . . . . . 2 . . Data Loss (minor) 1 | . . . . . . . 1 . . Data Loss (major) 1 | . . . . . . . 1 . . Overload Shots . | . . . . . . . . . . Overflow Damage 291 | . 15 . 22 46 . . 208 . . Projectiles 40 | . . . 22 18 . . . . . Explosions 140 | . 8 . . 28 . . 104 . . Melee 111 | . 7 . . . . . 104 . . Knockbacks 26 | . 1 3 21 1 . . . . . Impact 1 | . 1 . . . . . . . . Kinetic 21 | . . 3 17 1 . . . . . Secondary 4 | . . . 4 . . . . . . Self-Inflicted Damage 159 | . 49 33 . 55 . . 22 . . Shots 7 | . 3 1 . 2 . . 1 . . Rammed 1 | . . 1 . . . . . . . Targets Rammed 1 | . . 1 . . . . . . . Kicked . | . . . . . . . . . . Crushed . | . . . . . . . . . . Highest Temperature 302 | . 20 51 122 . . . 302 . . Average Temperature 37 | . 6 36 27 . . . 78 . . Received Heat Transfer 1542 | . 306 99 483 6 . 27 603 . 18 Siege Activations . | . . . . . . . . . . Robots Corrupted . | . . . . . . . . . . Combat Hostiles . | . . . . . . . . . . Parts Fried 2 | . 2 . . . . . . . . Impact Corruptions 1 | . 1 . . . . . . . . Robots Melted . | . . . . . . . . . . Combat Hostiles . | . . . . . . . . . . Parts Melted . | . . . . . . . . . . Heat Transferred . | . . . . . . . . . . Parts Sabotaged . | . . . . . . . . . . Parts Stolen . | . . . . . . . . . . Parts Stripped . | . . . . . . . . . . Power Chain Reactions . | . . . . . . . . . . Alert | -11 -10 -10 -9 -9 -9 -8 -8 -7 -7 ------- Run | Yrd Mat Min Mat Min Exi Min Mat Fac DSF Peak Influence 934 | . 318 353 921 767 . 50 934 424 296 Initial 424 | . . 91 70 358 . . 19 424 296 Average 353 | . 178 290 562 656 . 17 323 424 296 Maximum Alert Level 3 | . 1 1 3 3 . . 3 2 1 Low Security (%) 30 | 100 62 22 6 . . 100 24 . . Level 1 33 | . 37 77 12 . . . 44 . 100 Level 2 27 | . . . 61 78 . . 21 100 . Level 3 8 | . . . 20 20 . . 9 . . Level 4 . | . . . . . . . . . . Level 5 . | . . . . . . . . . . High Security . | . . . . . . . . . . Max Security . | . . . . . . . . . . Squads Dispatched 15 | . 3 . 5 . . . 5 . 2 Investigation 6 | . 1 . 2 . . . 3 . . Extermination . | . . . . . . . . . . Reinforcement 8 | . 2 . 2 . . . 2 . 2 Assault 1 | . . . 1 . . . . . . Garrison . | . . . . . . . . . . Intercept . | . . . . . . . . . . Searches Triggered . | . . . . . . . . . . Construction Impeded . | . . . . . . . . . . Haulers Reinforced . | . . . . . . . . . . Active Scanning Responses . | . . . . . . . . . . Cargo Convoy Interrupts . | . . . . . . . . . . Stealth | -11 -10 -10 -9 -9 -9 -8 -8 -7 -7 --------- Run | Yrd Mat Min Mat Min Exi Min Mat Fac DSF Distress Signals 8 | . 2 . 5 . . . 1 . . Communications Jammed . | . . . . . . . . . . Distress Signals . | . . . . . . . . . . Times Spotted 154 | . 26 10 45 14 . 3 53 . 3 Peak Tracking Total 10 | . 4 3 5 4 . 3 10 . 2 Tactical Retreats 18 | . 3 2 4 . . 1 8 . . Traps | -11 -10 -10 -9 -9 -9 -8 -8 -7 -7 ------- Run | Yrd Mat Min Mat Min Exi Min Mat Fac DSF Traps Triggered 1 | . . . . . . . . . 1 Indirectly . | . . . . . . . . . . Trap Hack Attempts . | . . . . . . . . . . Triggered . | . . . . . . . . . . Disarmed . | . . . . . . . . . . Reprogrammed . | . . . . . . . . . . Reused . | . . . . . . . . . . Traps Extracted . | . . . . . . . . . . Installed . | . . . . . . . . . . Triggered . | . . . . . . . . . . Machines | -11 -10 -10 -9 -9 -9 -8 -8 -7 -7 ---------- Run | Yrd Mat Min Mat Min Exi Min Mat Fac DSF Machines Disabled 8 | . 2 . 2 1 . . 3 . . Max in Single Turn 1 | . 1 . 1 1 . . 1 . . Garrison Access 1 | . . . . . . . 1 . . Machines Repaired . | . . . . . . . . . . Machines Dismantled . | . . . . . . . . . . Machines Sabotaged . | . . . . . . . . . . Overloaded Fab Kills . | . . . . . . . . . . Hacking | -11 -10 -10 -9 -9 -9 -8 -8 -7 -7 --------- Run | Yrd Mat Min Mat Min Exi Min Mat Fac DSF Machines Accessed 20 | . 6 . 3 . 2 . 8 1 . Terminals 13 | . 5 . 2 . . . 5 1 . Fabricators . | . . . . . . . . . . Repair Stations 1 | . . . . . . . 1 . . Recycling Units 2 | . 1 . 1 . . . . . . Scanalyzers 1 | . . . . . . . 1 . . Garrison Access 1 | . . . . . . . 1 . . Total Hacks 45 | . 14 . 7 . 2 . 21 1 . Successful 27 | . 9 . 3 . 2 . 12 1 . Failed 18 | . 5 . 4 . . . 9 . . Catastrophic 4 | . 1 . 1 . . . 2 . . Database Lockouts . | . . . . . . . . . . Manual 22 | . 4 . 7 . . . 11 . . Terminals 34 | . 13 . 6 . . . 14 1 . Fabricators . | . . . . . . . . . . Repair Stations 3 | . . . . . . . 3 . . Recycling Units 2 | . 1 . 1 . . . . . . Scanalyzers 2 | . . . . . . . 2 . . Garrison Access 2 | . . . . . . . 2 . . Terminal Hacks 17 | . 7 . 2 . 2 . 5 1 . Record 2 | . . . . . 2 . . . . Robot Analysis 2 | . 1 . . . . . 1 . . Prototype ID Bank 2 | . 2 . . . . . . . . Open DSF 1 | . . . . . . . . 1 . Branch Access Points 1 | . 1 . . . . . . . . Terminal Index 2 | . . . 1 . . . 1 . . Alert Level 2 | . 1 . . . . . 1 . . Hauler Manifests 4 | . 1 . 1 . . . 2 . . Registered Components 1 | . 1 . . . . . . . . Fabricator Hacks . | . . . . . . . . . . Repair Station Hacks 2 | . . . . . . . 2 . . Scan Component 1 | . . . . . . . 1 . . Repair 1 | . . . . . . . 1 . . Recycling Unit Hacks . | . . . . . . . . . . Scanalyzer 2 | . . . . . . . 2 . . Insert Component 1 | . . . . . . . 1 . . Analyze 1 | . . . . . . . 1 . . Garrison Access Hacks 1 | . . . . . . . 1 . . Seal Access 1 | . . . . . . . 1 . . Unauthorized Hacks 5 | . 2 . 1 . . . 2 . . Terminals 3 | . 1 . . . . . 2 . . Botnet 3 | . 1 . . . . . 2 . . Fabricators . | . . . . . . . . . . Repair Stations . | . . . . . . . . . . Recycling Units 2 | . 1 . 1 . . . . . . Tunnel 2 | . 1 . 1 . . . . . . Scanalyzers . | . . . . . . . . . . Garrison Access . | . . . . . . . . . . Data Cores Recovered . | . . . . . . . . . . Used . | . . . . . . . . . . Hacking Detections 12 | . 4 . 2 . . . 6 . . Full Trace Events 4 | . . . 1 . . . 3 . . Feedback Events . | . . . . . . . . . . Feedback Blocked . | . . . . . . . . . . Robot Schematics Acquired . | . . . . . . . . . . Robots Built . | . . . . . . . . . . Authchips . | . . . . . . . . . . Time . | . . . . . . . . . . Total Robot Build Rating . | . . . . . . . . . . Part Schematics Acquired 1 | . . . . . . . 1 . . Parts Built . | . . . . . . . . . . Authchips . | . . . . . . . . . . Time . | . . . . . . . . . . Total Part Build Rating . | . . . . . . . . . . Parts Repaired 1 | . . . . . . . 1 . . Time 26 | . . . . . . . 26 . . Parts Recycled . | . . . . . . . . . . Recycled Matter . | . . . . . . . . . . Retrieved Matter . | . . . . . . . . . . Retrieved Components . | . . . . . . . . . . Parts Scanalyzed 1 | . . . . . . . 1 . . Part Schematics Acquired 1 | . . . . . . . 1 . . Parts Damaged . | . . . . . . . . . . Bothacking | -11 -10 -10 -9 -9 -9 -8 -8 -7 -7 ------------ Run | Yrd Mat Min Mat Min Exi Min Mat Fac DSF Used RIF Installer . | . . . . . . . . . . Robots Hacked . | . . . . . . . . . . Non-combat . | . . . . . . . . . . Combat . | . . . . . . . . . . Robot Hacks Applied . | . . . . . . . . . . Relay Couplers Released . | . . . . . . . . . . Fabnet Peak Effective % . | . . . . . . . . . . Robots Rewired . | . . . . . . . . . . Allies Hacked . | . . . . . . . . . . Hacks Repelled . | . . . . . . . . . . Allies | -11 -10 -10 -9 -9 -9 -8 -8 -7 -7 -------- Run | Yrd Mat Min Mat Min Exi Min Mat Fac DSF Total Allies 1 | . . . . 1 . . . . . Largest Group 1 | . . . . 1 1 . . . . Highest-Rated Group 31 | . . . . 31 31 . . . . Highest-Rated Ally 31 | . . . . 31 31 . . . . Total Orders . | . . . . . . . . . . Ally Attacks . | . . . . . . . . . . Total Damage . | . . . . . . . . . . Kills . | . . . . . . . . . . Allies Corrupted . | . . . . . . . . . . Allies Melted . | . . . . . . . . . . Intel | -11 -10 -10 -9 -9 -9 -8 -8 -7 -7 ------- Run | Yrd Mat Min Mat Min Exi Min Mat Fac DSF Robot Analysis Total 2 | . 1 . . . . . 1 . . Derelict Logs Recovered 4 | . . 3 . 1 . . . . . Drone Launches . | . . . . . . . . . . Drone Recoveries . | . . . . . . . . . . Exploration | -11 -10 -10 -9 -9 -9 -8 -8 -7 -7 ------------- Run | Yrd Mat Min Mat Min Exi Min Mat Fac DSF Turns Passed 4536 | 18 1019 451 770 522 171 189 1351 3 42 Spaces Moved 4661 | 10 688 639 850 604 214 135 1473 7 41 Core 6 | 2 4 . . . . . . . . Treads 271 | 4 267 . . . . . . . . Legs 4 | 4 . . . . . . . . . Wheels . | . . . . . . . . . . Hover 4380 | . 417 639 850 604 214 135 1473 7 41 Flight . | . . . . . . . . . . Fastest Speed 40 | 100 52 52 48 48 48 48 40 40 40 Average Speed 60 | 132 112 52 51 48 48 48 54 40 40 Slowest Speed 250 | 160 250 52 52 48 48 48 112 40 40 Overloaded Moves . | . . . . . . . . . . Propulsion Burnouts . | . . . . . . . . . . Robots Hopped . | . . . . . . . . . . Cave-ins Triggered . | . . . . . . . . . . Exploration Rate (%) 63 | 2 97 83 63 98 60 29 84 . 52 Regions Visited 9 Branch Regions 4 Pre-discovered Areas 2 | . 1 . 1 . . . . . . Known Exits Taken 8 | . 1 1 1 1 1 1 1 1 . Unknown Exits Taken 1 | 1 . . . . . . . . . Scrap Searched 4 | . . 1 . 2 . 1 . . . Spaces Dug 17 | . 3 . . 12 . . 2 . . Terrain Destroyed 250 | . 25 50 8 58 . . 109 . . Melee 2 | . . . . . . . 2 . . Projectile 15 | . 1 4 8 2 . . . . . AOE 233 | . 24 46 . 56 . . 107 . . Terrain Rammed . | . . . . . . . . . . Walls Destroyed . | . . . . . . . . . . Machines Disabled . | . . . . . . . . . . Actions | -11 -10 -10 -9 -9 -9 -8 -8 -7 -7 --------- Run | Yrd Mat Min Mat Min Exi Min Mat Fac DSF Total 5911 | 15 839 732 1005 821 281 250 1909 6 53 Wait 693 | . 38 63 25 190 67 109 201 . . Move 4652 | 9 687 638 849 603 213 134 1472 6 41 Hop . | . . . . . . . . . . Pick Up 41 | 3 17 2 1 2 . 1 14 . 1 Fast Attach 26 | . . 1 2 . . . 23 . . Attach 23 | 2 12 . 1 1 . . 7 . . Detach 3 | . . . . . . . 3 . . Swap 39 | . 6 5 3 2 1 1 19 . 2 Drop 70 | 1 14 2 3 4 . . 46 . . Fire 185 | . 47 15 89 16 . . 18 . . Melee 87 | . 4 . . . . 5 69 . 9 Ram 1 | . . 1 . . . . . . . Kick . | . . . . . . . . . . Crush . | . . . . . . . . . . Escape Stasis . | . . . . . . . . . . Rewire . | . . . . . . . . . . Trap . | . . . . . . . . . . Miscellaneous 91 | . 14 5 32 3 . . 37 . . Route ------- -11/Scrapyard -10/Materials (discovered 4 exits: *Mat x3 / *Min) -10/Mines (discovered 2 exits: *Mat x2) -9/Materials (discovered 4 exits: *Mat x2 / *Min x2) -9/Mines (discovered 3 exits: *Mat x2 / *Exi) -9/Exiles -8/Mines -8/Materials (discovered 3 exits: *Fac x2 / *Sto) -7/Factory -7/DSF History --------- Turn | Location | Event 1 | -11/Scrapyard | Discovered new exit (range 1) 6 | -11/Scrapyard | Upgraded with Propulsion slot (x1) 6 | -11/Scrapyard | Upgraded with Utility slot (x1) 6 | -11/Scrapyard | Upgraded with Weapon slot (x1) 19 | -11/Scrapyard | Entered Materials 229 | -10/Materials | Discovered new exit (range 11) 251 | -10/Materials | Identified exit to Materials 309 | -10/Materials | Build established: Mutant 364 | -10/Materials | Identified exit to Mines 601 | -10/Materials | Reached level 2 711 | -10/Materials | Core integrity fell below 50% 724 | -10/Materials | Discovered exit to Materials (range 13) 876 | -10/Materials | Discovered exit to Materials (range 16) 965 | -10/Materials | Upgraded with Propulsion slot (x1) 1024 | -10/Materials | Build established: Scavenger-Mutant 1038 | -10/Materials | Entered Mines 1093 | -10/Mines | Reached level 3 1286 | -10/Mines | Assembled infested the area 1291 | -10/Mines | Assisted by a Guerilla fighting off Assembled 1429 | -10/Mines | A weapon hastily lodged in a ceiling crevice suddenly fell to the ground 1431 | -10/Mines | Learned Materials terminal intel 1432 | -10/Mines | Learned 2 Materials zone layouts 1453 | -10/Mines | Upgraded with Utility slot (x1) 1464 | -10/Mines | Discovered exit to Materials (range 5) 1477 | -10/Mines | Discovered exit to Materials (range 8) 1489 | -10/Mines | Entered Materials 1490 | -9/Materials | Core integrity fell below 50% 1491 | -9/Materials | Loaded intel: 12 terminal locations 1491 | -9/Materials | Reached level 4 1582 | -9/Materials | Reached level 5 1741 | -9/Materials | Discovered new exit (range 8) 1748 | -9/Materials | Identified exit to Materials 1806 | -9/Materials | Discovered exit to Materials (range 16) 1884 | -9/Materials | Reached level 6 1889 | -9/Materials | First assault squad dispatched 2039 | -9/Materials | Discovered new exit (range 10) 2045 | -9/Materials | Identified exit to Mines 2085 | -9/Materials | Discovered exit to Mines (range 5) 2105 | -9/Materials | Core integrity fell below 20% 2120 | -9/Materials | Upgraded with Utility slot (x1) 2123 | -9/Materials | Upgraded with Propulsion slot (x1) 2206 | -9/Materials | Reached level 7 2259 | -9/Materials | Entered Mines 2274 | -9/Mines | Learned Materials emergency access door positions 2283 | -9/Mines | Reached level 8 2339 | -9/Mines | Destroyed 8 combat bots 2574 | -9/Mines | Discovered exit to Materials (range 7) 2636 | -9/Mines | Discovered exit to Materials (range 7) 2640 | -9/Mines | Received a Mining Laser from a helpful Derelict 2761 | -9/Mines | Deemed a non-threat by the Exiles lab entrance 2761 | -9/Mines | Discovered new exit (range 5) 2763 | -9/Mines | Identified exit to Exiles 2781 | -9/Mines | Entered Exiles 2781 | -9/Exiles | Found Exiles lab abandoned 2781 | -9/Exiles | Accompanied by 1 ally 2948 | -9/Exiles | Discovered new exit (range 10) 2952 | -9/Exiles | Identified exit to Mines 2952 | -9/Exiles | Entered Mines 3050 | -8/Mines | Reached level 9 3075 | -8/Mines | Build established: Scavenger-Gladiator 3138 | -8/Mines | Discovered exit to Materials (range 6) 3141 | -8/Mines | Entered Materials 3142 | -8/Materials | Identified exit to Storage 3142 | -8/Materials | Core integrity fell below 50% 3143 | -8/Materials | Reached level 10 3166 | -8/Materials | Upgraded with Utility slot (x1) 3652 | -8/Materials | Upgraded with Power slot (x1) 3748 | -8/Materials | Reached level 11 3925 | -8/Materials | Discovered new exit (range 16) 3930 | -8/Materials | Build established: Gladiator 4187 | -8/Materials | Upgraded with Utility slot (x1) 4328 | -8/Materials | Discovered new exit (range 12) 4370 | -8/Materials | Reached level 12 4417 | -8/Materials | Destroyed 8 combat bots 4485 | -8/Materials | Repaired Hover Unit 4491 | -8/Materials | Identified exit to Factory 4492 | -8/Materials | Entered Factory 4493 | -7/Factory | Core integrity fell below 50% 4494 | -7/Factory | Reached level 13 4495 | -7/Factory | Identified exit to DSF 4495 | -7/Factory | Entered DSF 4508 | -7/DSF | Additional patrols routed to DSF 4524 | -7/DSF | Core integrity fell below 20% 4537 | -7/DSF | Destroyed by H-61 Shepherd with Heavy Assault Cannon Last Messages --------------- GOAL=ESCAPE 04498_ ALERT: Suspicious intruders detected, dispatching Cutter reinforcements to area. 04502_ Triggered Alarm Trap. 04502_ An alarm sounds. 04503_ X-62 Marksman springs to life. 04507_ Acquired Melee Analysis Suite. 04508_ Hostiles detected in DSF, routing additional patrols. 04509_ Discarded Signal Interpreter. 04516_ Chainsword follow-up attack on H-61 Shepherd. 04517_ H-61 Shepherd calls for reinforcements. 04517_ ALERT: Hostile activity reported, dispatching reinforcements to area. 04520_ Penetrated by Slug. 04525_ Chainsword follow-up attack on H-61 Shepherd. 04527_ Slug penetrates Wall. 04531_ Chainsword follow-up attack on H-61 Shepherd. 04531_ Knocked back. 04533_ Penetrated by Slug. 04535_ Knocked back. Map ----- +----------------------------------------------------+ | | | ????????????????????????????????????????????????? | | ????????????????????????????????????????????????? | | ????????????????????????????????????????????????? | | ????????????????????????????????????????????????? | | ????????""#?????????????????????????????????????? | | ????????#"#?????????????????????????????????????? | | ?????####"##???????#########????????????????????? | | ?????#"""""######### ]]] #????????????????????? | | ?????#"""""##//#///# ]]] #????????????????????? | | ??#"##"" #????????????????????? | | ??#""""" #????????????????????? | | ???###"" ##//# ### ###????????????????????? | | ?????### ###//# ###x "##????????????????????? | | ??????## ##########!! #????????????????????? | | ??????#/ #??????#!! #????????????????????? | | ??????#/ #??????# ! #????????????????????? | | ??????## ###??????#;; ###????????????????????? | | ??????#/ #??????# ! !!#????????????????????? | | ??????#/ #??????#!! !!#????????????????????? | | ??????#/ #??????#!!% !!#????????????????????? | | ??????## ###??????#;; ###??##????????????????? | | ???????] #????????#;; % ##??!!#????????????????? | | ???????] ##]]]#!!!##a % a##!!!#!!!## //???????? | | ??????? ???????? | | ??????? @ ???????? | | ??????? % H ???????? | | ???????! ##!!!#!!!##a a##!!!#!!!## [[???????? | | ???????! ##!??#!!!?## ##?!!!#??!#????????????? | | ???????# #????###???# #???###????????????????? | | ???????? ???????????! /??????????????????????? | | ???????? ??????????!! /??????????????????????? | | ???????? ?????????#!! /??????????????????????? | | ???????????????????###g ##?????????????????????? | | ?????????????????????= !??????????????????????? | | ?????????????????????= !??????????????????????? | | ????????????????????== !??????????????????????? | | ????????????????????## #??????????????????????? | | ?????????????????????# ???????????????????????? | | ????????????????????? ???????????????????????? | | ????????????????????????????????????????????????? | | ????????????????????????????????????????????????? | | ????????????????????????????????????????????????? | | ????????????????????????????????????????????????? | | ????????????????????????????????????????????????? | | ????????????????????????????????????????????????? | | ????????????????????????????????????????????????? | | ????????????????????????????????????????????????? | | ????????????????????????????????????????????????? | | ????????????????????????????????????????????????? | +----------------------------------------------------+ Best States ------------- Heat Dissipation 39 Energy Generation 23 Energy Capacity 340 Matter Stores 300 Matter Capacity 300 Sight Range 16 Robot Scan Range 15 Terrain Scan Density 10 Armor Coverage 450 Evasion (%) 65 Recoil Reduction 2 Item Schematics ----------------- Aerolev Unit | -8/Materials | Scanalyzed Robot Schematics ------------------ None Fabricated ------------ Nothing Alien Tech Used ----------------- None Achievements -------------- None Challenges ------------ None RPGLIKE | -11 -10 -10 -9 -9 -9 -8 -8 -7 -7 --------- Run | Yrd Mat Min Mat Min Exi Min Mat Fac DSF Levels Raised 12 | . 1 1 4 1 . 1 3 1 . XP Earned 22443 | 3000 2035 1450 5872 1955 139 600 4642 1500 1250 XP Spent 11980 | 3000 800 800 2680 . . . 4700 . . Upgrades 23 | 6 1 1 10 . . . 5 . . Power Slot 1 | . . . . . . . 1 . . Propulsion Slot 3 | 1 1 . 1 . . . . . . Utility Slot 5 | 1 . 1 1 . . . 2 . . Weapon Slot 1 | 1 . . . . . . . . . Core Integrity 8 | . . . 8 . . . . . . Mass Support 1 | . . . . . . . 1 . . Inventory Capacity 4 | 3 . . . . . . 1 . . Protomatter Created 709 | . 104 26 229 11 . . 339 . . Integrity Restored 1920 | . 312 75 663 33 . . 837 . . Core 1920 | . 312 75 663 33 . . 837 . . Protomatter Decayed 36 | . . 6 30 . . . . . . Game ------ Seed MetafiberVortexTrap Manual? 0 Play Time 00:45:59 Cumulative 79.1 hours Start 2024.04.16 @ 19:56:00 End 2024.04.21 @ 02:54:33 Sessions 7 Manual Loads 0 Difficulty Rogue Special Mode Winter2019/RPGLIKE Game No. 54 Rogue 52 Adventurer 2 Explorer 0 Win Type - Total 4 Types 1/1/1/0/1/0/0/0/0 Lore% 34 Gallery% 59 Achievement% 49 Wizard Run 0 Options --------- Layout 0 ASCII 0 Keyboard 0 Movement Mouse Keybinds 1 Fullscreen 2 Font 18/Smallcaps Map View 76x50 Zoom Use 0% Tactical HUD 1 Map Filters NONE Filters NONE Steam 1 RUN: 47d0ec23-062d-4f72-abaf-60b0b1cc756c